[Event "Fall Chess Classic-B 2019"]
[Site "Saint Louis"]
[Date "2019.09.10"]
[Round "1.1"]
[White "Grigoryan, Avetik"]
[Black "Zierk, Steven"]
[Result "0-1"]
[ECO "A05"]
[WhiteElo "2568"]
[BlackElo "2517"]
[Annotator "RC"]
[PlyCount "96"]
[EventDate "2019.09.10"]
[EventType "tourn"]
[EventCountry "USA"]
[SourceTitle "playchess.com"]
[Source "ChessBase"]
[SourceQuality "1"]
[TimeControl "40/5400+30:1800+30"]

1. Nf3 {[%emt 0:00:00]} Nf6 {[%emt 0:00:00]} 2. g3 {[%emt 0:00:50]} b6 {[%emt 0:00:48]} 3. Bg2 {[%emt 0:00:23]} Bb7 {[%emt 0:00:05]} 4. O-O {[%emt 0:00:29]} g6 {[%emt 0:00:06]} 5. d4 {[%emt 0:01:51]} Bg7 {[%emt 0:00:07]} 6. c4 {[%emt 0:00:21]} O-O {[%emt 0:00:17]} 7. d5 {[%emt 0:05:10]} e6 {[%emt 0:13:26]} 8. Nc3 {[%emt 0:00:28]} exd5 {[%emt 0:00:38]} 9. cxd5 {[%emt 0:00:09]} Re8 {[%emt 0:01:22]} 10. Bf4 {[%emt 0:03:40]} Na6 {[%emt 0:06:24]} 11. Rc1 {[%emt 0:07:57]} c6 {[%emt 0:09:11]} 12. a3 {[%emt 0:15:16]} Nxd5 {[%emt 0:06:05]} 13. Nxd5 {[%emt 0:00:27]} cxd5 {[%emt 0:00:03]} 14. b4 {[%emt 0:03:34]} d6 {[%emt 0:02:52]} 15. Qd2 {[%emt 0:17:54]} Nc7 {[%emt 0:07:20]} 16. Rfd1 {[%emt 0:09:53]} Ne6 {[%emt 0:08:30]} 17. Bh6 {[%emt 0:00:05]} Bf6 {[%emt 0:02:18]} 18. Be3 {[%emt 0:01:46]} Rc8 {[%emt 0:05:26]} 19. Rxc8 {[%emt 0:02:53]} Qxc8 {[%emt 0:00:16]} 20. h4 {[%emt 0:00:37]} Qd7 {[%emt 0:08:16]} 21. Qd3 {[%emt 0:15:05]} Rc8 {[%emt 0:03:54]} 22. Bd4 {[%emt 0:00:06]} Nxd4 {[%emt 0:01:00]} 23. Nxd4 {[%emt 0:00:05]} Qa4 {[%emt 0:03:41]} 24. h5 {[%emt 0:05:58]} Rc3 {[%emt 0:06:46]} 25. Qd2 {[%emt 0:00:01]} Rxa3 {[%emt 0:00:41]} 26. Kh2 {[%emt 0:00:01]} Ra2 {[%emt 0:03:15]} 27. Qf4 {[%emt 0:01:28]} Be5 28. Qh4 {[%emt 0:00:11]} Qe8 {[%emt 0:04:36]} 29. Bf3 {[%emt 0:00:22]} Rb2 {[%emt 0:01:07]} 30. b5 {[%emt 0:00:30]} Rb4 {[%emt 0:02:10]} 31. e3 {[%emt 0:00:17]} Rb2 {[%emt 0:01:56]} 32. Kg2 {[%emt 0:00:06]} Bg7 {[%emt 0:00:46]} 33. Rc1 {[%emt 0:01:31]} Qxe3 {[%emt 0:00:45]} 34. Rc2 {[%emt 0:02:18]} Rxc2 {[%emt 0:01:02]} 35. Qd8+ {[%emt 0:00:16]} Bf8 {[%emt 0:00:01]} 36. Nxc2 {[%emt 0:00:04]} Qc5 {[%emt 0:00:37]} 37. hxg6 {[%emt 0:00:30]} hxg6 {[%emt 0:00:24]} 38. Nd4 {[%emt 0:00:54]} Qc8 {[%emt 0:01:02]} 39. Qg5 {[%emt 0:00:20]} a6 {[%emt 0:01:39]} 40. Nc6 {[%emt 0:00:00]} axb5 {[%emt 0:00:00]} 41. Nd8 {[%emt 0:05:35]} Ba8 {[%emt 0:03:11]} 42. Bg4 {[%emt 0:05:31]} d4+ {[%emt 0:02:13]} 43. Kh2 {[%emt 0:02:54]} Qc7 {[%emt 0:01:32]} 44. Be6 {[%emt 0:00:16]} fxe6 {[%emt 0:00:35]} 45. Qxg6+ {[%emt 0:00:06]} Qg7 {[%emt 0:00:43]} 46. Qxe6+ {[%emt 0:00:05]} Kh7 {[%emt 0:00:22]} 47. Qf5+ {[%emt 0:00:20]} Qg6 {[%emt 0:00:10]} 48. Qxf8 {[%emt 0:00:32]} Qh5+ {[%emt 0:00:07]} 0-1

[Event "Fall Chess Classic-B 2019"]
[Site "Saint Louis"]
[Date "2019.09.15"]
[Round "6.2"]
[White "Fier, Alexandr"]
[Black "Mikhalevski, Victor"]
[Result "1-0"]
[ECO "C36"]
[WhiteElo "2549"]
[BlackElo "2578"]
[Annotator "RC"]
[PlyCount "79"]
[EventDate "2019.09.10"]
[EventType "tourn"]
[EventCountry "USA"]
[SourceTitle "playchess.com"]
[Source "ChessBase"]
[SourceQuality "1"]
[TimeControl "40/5400+30:1800+30"]

1. e4 {[%emt 0:00:00]} e5 {[%emt 0:02:52]} 2. f4 {[%emt 0:00:00]} d5 {[%emt 0:01:30]} 3. exd5 {[%emt 0:00:00]} exf4 {[%emt 0:00:06]} 4. Nf3 {[%emt 0:00:00]} Nf6 {[%emt 0:00:13]} 5. Bc4 {[%emt 0:00:00]} Nxd5 {[%emt 0:01:07]} 6. O-O {[%emt 0:00:00]} Be6 {[%emt 0:05:08]} 7. Bb3 {[%emt 0:00:16]} Bd6 {[%emt 0:09:02]} 8. c4 {[%emt 0:05:52]} Nb6 {[%emt 0:07:53]} 9. d4 {[%emt 0:00:50]} Nxc4 {[%emt 0:03:01]} 10. Re1 {[%emt 0:02:24]} Ne3 {[%emt 0:02:46]} 11. Bxe3 {[%emt 0:00:06]} fxe3 {[%emt 0:00:03]} 12. Bxe6 {[%emt 0:00:12]} fxe6 {[%emt 0:00:04]} 13. Qb3 {[%emt 0:02:22]} O-O {[%emt 0:00:37]} 14. Qxb7 {[%emt 0:02:38]} Nd7 {[%emt 0:06:07]} 15. Qe4 {[%emt 0:00:16]} Rb8 {[%emt 0:36:33]} 16. Na3 {[%emt 0:04:38]} Nf6 {[%emt 0:03:49]} 17. Qxe6+ {[%emt 0:01:03]} Kh8 {[%emt 0:00:06]} 18. Nc4 {[%emt 0:00:04]} Bf4 {[%emt 0:14:47]} 19. g3 {[%emt 0:03:57]} Re8 {[%emt 0:00:34]} 20. Qc6 {[%emt 0:01:28]} Bh6 {[%emt 0:00:47]} 21. Re2 {[%emt 0:05:16]} Qd5 {[%emt 0:00:37]} 22. Nce5 {[%emt 0:00:04]} Qxc6 {[%emt 0:00:48]} 23. Nxc6 {[%emt 0:00:03]} Rb6 {[%emt 0:00:09]} 24. Rc1 {[%emt 0:00:07]} Kg8 {[%emt 0:00:56]} 25. Nfe5 {[%emt 0:02:14]} a6 {[%emt 0:00:24]} 26. b4 {[%emt 0:02:59]} Nd5 {[%emt 0:01:00]} 27. a3 {[%emt 0:00:05]} g6 {[%emt 0:00:47]} 28. Nd7 {[%emt 0:01:17]} Bg7 {[%emt 0:01:18]} 29. Nxb6 {[%emt 0:01:49]} cxb6 {[%emt 0:00:01]} 30. Kf1 {[%emt 0:00:48]} Kf7 {[%emt 0:00:18]} 31. Ree1 {[%emt 0:01:21]} Ke6 {[%emt 0:00:14]} 32. Ke2 {[%emt 0:00:03]} h5 {[%emt 0:01:46]} 33. Kd3 {[%emt 0:05:37]} Ra8 {[%emt 0:00:14]} 34. Ke4 {[%emt 0:01:00]} Rf8 {[%emt 0:00:43]} 35. Ne5 {[%emt 0:00:18]} Nf6+ {[%emt 0:00:28]} 36. Kd3 {[%emt 0:01:16]} Rd8 {[%emt 0:00:40]} 37. Rxe3 {[%emt 0:00:39]} Kd5 {[%emt 0:00:29]} 38. Nc6 {[%emt 0:01:08]} Ng4 {[%emt 0:00:32]} 39. Nxd8 {[%emt 0:00:28]} Nxe3 {[%emt 0:00:01]} 40. Rc7 {[%emt 0:00:00]} 1-0

[Event "Fall Chess Classic-B 2019"]
[Site "Saint Louis"]
[Date "2019.09.15"]
[Round "6.5"]
[White "Shtembuliak, Evgeny"]
[Black "Hakobyan, Aram"]
[Result "0-1"]
[ECO "A40"]
[WhiteElo "2548"]
[BlackElo "2550"]
[Annotator "ChessBase"]
[PlyCount "70"]
[EventDate "2019.09.10"]
[EventType "tourn"]
[EventCountry "USA"]
[SourceTitle "playchess.com"]
[Source "ChessBase"]
[SourceQuality "1"]
[TimeControl "40/5400+30:1800+30"]

1. d4 {[%emt 0:00:00]} Nf6 {[%emt 0:00:00]} 2. c4 {[%emt 0:00:00]} e6 {[%emt 0:00:01]} 3. g3 {[%emt 0:00:00]} c5 {[%emt 0:00:06]} 4. d5 {[%emt 0:00:00]} exd5 {[%emt 0:00:06]} 5. cxd5 {[%emt 0:00:00]} d6 {[%emt 0:00:04]} 6. Bg2 {[%emt 0:00:20]} b5 {[%emt 0:00:23]} 7. a4 {[%emt 0:10:05]} b4 {[%emt 0:00:08]} 8. b3 {[%emt 0:10:47]} g6 {[%emt 0:00:22]} 9. Bb2 {[%emt 0:00:05]} Bg7 {[%emt 0:00:04]} 10. Nd2 {[%emt 0:04:46]} Ba6 {[%emt 0:00:01]} 11. Qc2 {[%emt 0:10:26]} Nbd7 {[%emt 0:01:03]} 12. a5 {[%emt 0:04:51]} O-O {[%emt 0:00:25]} 13. Nc4 {[%emt 0:08:49]} Qe7 {[%emt 0:00:02]} 14. e3 {[%emt 0:09:06]} Ng4 {[%emt 0:00:01]} 15. Bxg7 {[%emt 0:01:51]} Kxg7 {[%emt 0:00:02]} 16. Nf3 {[%emt 0:01:14]} Nde5 {[%emt 0:01:12]} 17. Nfxe5 {[%emt 0:04:41]} Nxe5 {[%emt 0:00:02]} 18. O-O {[%emt 0:00:13]} Qf6 {[%emt 0:00:49]} 19. Rfe1 {[%emt 0:03:57]} Bxc4 {[%emt 0:06:00]} 20. bxc4 {[%emt 0:00:14]} b3 {[%emt 0:00:17]} 21. Qe2 {[%emt 0:03:40]} Rab8 {[%emt 0:01:29]} 22. f4 {[%emt 0:00:05]} Nxc4 {[%emt 0:03:31]} 23. Qxc4 {[%emt 0:00:21]} Rb4 {[%emt 0:00:03]} 24. Qe2 {[%emt 0:06:02]} c4 {[%emt 0:00:04]} 25. e4 {[%emt 0:06:39]} Qd4+ {[%emt 0:06:26]} 26. Kf1 {[%emt 0:06:15]} c3 {[%emt 0:00:49]} 27. Rad1 {[%emt 0:00:02]} Qc4 {[%emt 0:03:43]} 28. e5 {[%emt 0:00:58]} c2 {[%emt 0:04:53]} 29. Rc1 {[%emt 0:00:12]} Rc8 {[%emt 0:00:52]} 30. exd6 {[%emt 0:04:22]} b2 {[%emt 0:01:08]} 31. Rxc2 {[%emt 0:01:50]} Qxc2 {[%emt 0:02:17]} 32. Qe5+ {[%emt 0:00:03]} Kg8 {[%emt 0:00:09]} 33. d7 {[%emt 0:00:34]} Rf8 {[%emt 0:00:23]} 34. Qe8 {[%emt 0:02:21]} b1=Q {[%emt 0:01:29]} 35. d8=Q {[%emt 0:00:05]} Qxe1+ {[%emt 0:00:17]} 0-1

[Event "Fall Chess Classic-B 2019"]
[Site "Saint Louis"]
[Date "2019.09.17"]
[Round "8.4"]
[White "Shtembuliak, Evgeny"]
[Black "Kadric, Denis"]
[Result "0-1"]
[ECO "E62"]
[WhiteElo "2548"]
[BlackElo "2558"]
[Annotator "RC"]
[PlyCount "108"]
[EventDate "2019.09.10"]
[EventType "tourn"]
[EventCountry "USA"]
[SourceTitle "playchess.com"]
[Source "ChessBase"]
[SourceQuality "1"]
[TimeControl "40/5400+30:1800+30"]

1. d4 {[%emt 0:02:29]} d6 {[%emt 0:00:00]} 2. Nf3 {[%emt 0:00:08]} Nf6 {[%emt 0:00:00]} 3. c4 {[%emt 0:00:37]} g6 {[%emt 0:00:00]} 4. g3 {[%emt 0:00:30]} Bg7 {[%emt 0:00:00]} 5. Bg2 {[%emt 0:00:05]} c6 {[%emt 0:00:07]} 6. O-O {[%emt 0:00:14]} O-O {[%emt 0:00:02]} 7. Nc3 {[%emt 0:00:07]} Bf5 {[%emt 0:00:02]} 8. Ng5 {[%emt 0:00:08]} e5 {[%emt 0:00:40]} 9. d5 {[%emt 0:00:22]} Qc7 {[%emt 0:00:19]} 10. dxc6 {[%emt 0:06:28]} bxc6 {[%emt 0:00:31]} 11. b4 {[%emt 0:00:29]} h6 {[%emt 0:02:45]} 12. Nge4 {[%emt 0:02:36]} Nxe4 {[%emt 0:03:25]} 13. Nxe4 {[%emt 0:01:11]} Rd8 {[%emt 0:00:37]} 14. Nc3 {[%emt 0:10:43]} Be6 {[%emt 0:02:32]} 15. Qb3 {[%emt 0:01:06]} f5 {[%emt 0:04:44]} 16. b5 {[%emt 0:23:40]} e4 {[%emt 0:00:11]} 17. Bb2 {[%emt 0:04:32]} Qf7 {[%emt 0:03:25]} 18. Qa4 {[%emt 0:00:30]} Nd7 {[%emt 0:02:31]} 19. bxc6 {[%emt 0:03:51]} Nb6 {[%emt 0:00:05]} 20. Qc2 {[%emt 0:00:16]} Nxc4 {[%emt 0:00:02]} 21. Rac1 {[%emt 0:03:45]} Rac8 {[%emt 0:08:48]} 22. Ba1 {[%emt 0:00:09]} Rxc6 {[%emt 0:00:02]} 23. Nb5 {[%emt 0:00:19]} Bxa1 {[%emt 0:00:49]} 24. Rxa1 {[%emt 0:00:01]} Rc5 {[%emt 0:00:42]} 25. Nd4 {[%emt 0:04:27]} Ne3 {[%emt 0:00:39]} 26. Qd2 {[%emt 0:00:03]} Nxf1 {[%emt 0:00:17]} 27. Bxf1 {[%emt 0:00:04]} Kh7 {[%emt 0:00:16]} 28. e3 {[%emt 0:00:19]} Bc4 {[%emt 0:00:42]} 29. Bxc4 {[%emt 0:00:15]} Qxc4 {[%emt 0:00:16]} 30. Rb1 {[%emt 0:00:08]} Rd7 {[%emt 0:00:58]} 31. Kg2 {[%emt 0:00:23]} Qd5 {[%emt 0:04:47]} 32. Rb8 {[%emt 0:02:39]} Rb7 {[%emt 0:01:24]} 33. Rd8 {[%emt 0:00:19]} h5 {[%emt 0:02:14]} 34. a4 {[%emt 0:05:52]} Rcc7 {[%emt 0:00:04]} 35. Qe2 {[%emt 0:02:06]} Rb1 {[%emt 0:08:52]} 36. Nb5 {[%emt 0:05:12]} Rc6 {[%emt 0:02:47]} 37. Rd7+ {[%emt 0:00:58]} Kh6 {[%emt 0:00:05]} 38. Nd4 {[%emt 0:03:28]} Rcb6 {[%emt 0:22:44]} 39. Rxa7 {[%emt 0:09:24]} R1b2 {[%emt 0:01:26]} 40. Qe1 {[%emt 0:00:00]} Qa2 {[%emt 0:00:00]} 41. a5 {[%emt 0:03:57]} R6b4 {[%emt 0:01:31]} 42. a6 {[%emt 0:14:59]} f4 {[%emt 0:07:59]} 43. gxf4 {[%emt 0:02:43]} Rxd4 {[%emt 0:00:02]} 44. exd4 {[%emt 0:00:41]} Re2 {[%emt 0:00:02]} 45. Qg1 {[%emt 0:03:40]} Qd2 {[%emt 0:05:39]} 46. Rf7 {[%emt 0:06:00]} Qd3 {[%emt 0:12:50]} 47. a7 {[%emt 0:09:16]} Ra2 {[%emt 0:00:05]} 48. Qf1 {[%emt 0:01:57]} Qf3+ {[%emt 0:00:15]} 49. Kg1 {[%emt 0:00:02]} e3 {[%emt 0:00:07]} 50. fxe3 {[%emt 0:01:13]} Qxe3+ {[%emt 0:00:03]} 51. Kh1 {[%emt 0:00:04]} Qe4+ {[%emt 0:00:01]} 52. Kg1 {[%emt 0:00:07]} Qxd4+ {[%emt 0:00:04]} 53. Kh1 {[%emt 0:00:04]} Qd5+ {[%emt 0:00:01]} 54. Kg1 {[%emt 0:00:05]} Qxf7 {[%emt 0:00:05]} 0-1

[Event "Fall Chess Classic-B 2019"]
[Site "Saint Louis"]
[Date "2019.09.18"]
[Round "9.1"]
[White "Quesada Perez, Yasser"]
[Black "Zierk, Steven"]
[Result "1-0"]
[ECO "C15"]
[WhiteElo "2572"]
[BlackElo "2517"]
[Annotator "ChessBase"]
[PlyCount "77"]
[EventDate "2019.09.10"]
[EventType "tourn"]
[EventCountry "USA"]
[SourceTitle "playchess.com"]
[Source "ChessBase"]
[SourceQuality "1"]
[TimeControl "40/5400+30:1800+30"]

1. e4 {[%emt 0:00:00]} e6 {[%emt 0:00:00]} 2. d4 {[%emt 0:00:00]} d5 {[%emt 0:00:00]} 3. Nc3 {[%emt 0:00:00]} Bb4 {[%emt 0:00:48]} 4. Nge2 {[%emt 0:00:16]} dxe4 {[%emt 0:00:46]} 5. a3 {[%emt 0:00:10]} Bxc3+ {[%emt 0:01:31]} 6. Nxc3 {[%emt 0:00:07]} Nc6 {[%emt 0:00:12]} 7. Bf4 {[%emt 0:00:12]} Nf6 {[%emt 0:04:36]} 8. Bb5 {[%emt 0:00:20]} Nd5 {[%emt 0:06:16]} 9. Bxc6+ {[%emt 0:00:10]} bxc6 {[%emt 0:00:05]} 10. Qd2 {[%emt 0:00:05]} Nxf4 {[%emt 0:04:42]} 11. Qxf4 {[%emt 0:00:11]} Qxd4 {[%emt 0:00:11]} 12. Qxc7 {[%emt 0:00:06]} O-O {[%emt 0:07:35]} 13. Rd1 {[%emt 0:00:14]} Qb6 {[%emt 0:02:01]} 14. Qxb6 {[%emt 0:00:21]} axb6 {[%emt 0:00:15]} 15. Rd6 {[%emt 0:00:03]} Bb7 {[%emt 0:05:23]} 16. Ke2 {[%emt 0:00:18]} f5 {[%emt 0:11:58]} 17. Rhd1 {[%emt 0:02:33]} e5 {[%emt 0:01:03]} 18. Rd7 {[%emt 0:15:39]} Rf7 {[%emt 0:08:31]} 19. Rxf7 {[%emt 0:01:48]} Ba6+ {[%emt 0:00:09]} 20. Ke1 {[%emt 0:04:43]} Kxf7 {[%emt 0:00:06]} 21. Rd7+ {[%emt 0:00:03]} Kf8 {[%emt 0:02:06]} 22. b3 {[%emt 0:08:15]} Bc8 {[%emt 0:15:38]} 23. Rc7 {[%emt 0:00:17]} Be6 {[%emt 0:01:56]} 24. Rxc6 {[%emt 0:01:03]} Bd7 {[%emt 0:00:49]} 25. Rc7 {[%emt 0:04:10]} Be8 {[%emt 0:00:38]} 26. a4 {[%emt 0:11:23]} Rd8 {[%emt 0:03:05]} 27. b4 {[%emt 0:01:00]} f4 {[%emt 0:05:20]} 28. a5 {[%emt 0:02:53]} bxa5 {[%emt 0:03:45]} 29. bxa5 {[%emt 0:00:12]} Ra8 {[%emt 0:01:22]} 30. Rc5 {[%emt 0:00:06]} e3 {[%emt 0:00:22]} 31. fxe3 {[%emt 0:01:07]} fxe3 {[%emt 0:00:02]} 32. Nd5 {[%emt 0:03:14]} Rb8 {[%emt 0:00:27]} 33. Nxe3 {[%emt 0:01:05]} Rb5 {[%emt 0:00:13]} 34. Rxb5 {[%emt 0:00:50]} Bxb5 {[%emt 0:00:01]} 35. c4 {[%emt 0:17:01]} Ba6 {[%emt 0:00:44]} 36. Nd5 {[%emt 0:07:34]} Bxc4 {[%emt 0:02:35]} 37. Nc7 {[%emt 0:00:10]} Bd3 {[%emt 0:00:06]} 38. a6 {[%emt 0:00:13]} Be4 {[%emt 0:00:04]} 39. Kf2 {[%emt 0:00:25]} 1-0